Cogmind - Beta 14 @@@ ROGUE MODE // 2025.01.18 @ 16:09:15 Player: Swagumen Result: Destroyed by S-10 Pest with Light Assault Rifle Performance ------------- Evolutions (0) 0 Regions Visited (1) 200 Robots Destroyed (11) 55 Value Destroyed (296) 296 Prototype IDs (0) 0 Alien Tech Used (0) 0 Bonus (0) 0 TOTAL SCORE: 551 Bonus ------- None Cogmind --------- Core Integrity 0/250 Matter 300/300 Energy 100/100 System Corruption 0% Temperature Cool (0) Movement Core (150) Ox2 Location -10/Materials Parts ------- > --- POWER (1) -------- (None) > --- PROPULSION (2) --- (None) > --- UTILITY (2) ------ Small Storage Unit > --- WEAPON (2) ------- Medium Laser Light Assault Rifle > --- INVENTORY (8) ---- Aluminum Leg Aluminum Leg Wheel Signal Interpreter Light Armor Plating Grenade Launcher Peak State ------------ > --- POWER ------------ Light Ion Engine > --- PROPULSION ------- Light Treads Light Treads > --- UTILITY ---------- Small Storage Unit Seismic Detector > --- WEAPON ----------- Medium Laser Light Assault Rifle > --- INVENTORY -------- Aluminum Leg Aluminum Leg Wheel [Rating: 7] Favorites ----------- Power Light Ion Engine Engine Light Ion Engine Propulsion Light Treads Treads Light Treads Utility Small Storage Unit Device Seismic Detector Storage Small Storage Unit Weapon Medium Laser Energy Gun Medium Laser Ballistic Gun Light Assault Rifle Build | -11 -10 ------- Run | Yrd Mat Slots Evolved . | . . Power . | . . Propulsion . | . . Utility . | . . Weapon . | . . Parts Attached 11 | 7 4 Power 3 | 1 2 Engine 3 | 1 2 Core . | . . Reactor . | . . Propulsion 2 | 2 . Treads 2 | 2 . Leg . | . . Wheel . | . . Hover . | . . Flight . | . . Utility 2 | 2 . Device 1 | 1 . Storage 1 | 1 . Processor . | . . Hackware . | . . Protection . | . . Artifact . | . . Weapon 4 | 2 2 Energy Gun 2 | 1 1 Energy Cannon . | . . Ballistic Gun 2 | 1 1 Ballistic Cannon . | . . Launcher . | . . Special Weapon . | . . Impact Weapon . | . . Slashing Weapon . | . . Piercing Weapon . | . . Special Melee Weapon . | . . Unidentified Prototypes . | . . Parts Lost 5 | . 5 Power 2 | . 2 Propulsion 2 | . 2 Utility 1 | . 1 Weapon . | . . Highest Loss Streak 3 | . 3 To Critical Strikes . | . . Average Slot Usage (%) 95 | . 95 Engine 11 | . 11 Treads 26 | . 26 Device 12 | . 12 Storage 14 | . 14 Energy Gun 18 | . 18 Ballistic Gun 9 | . 9 Peak Build Rating 7 | 7 7 Average Rating 6 | 5 6 On Entrance 3 | . 7 Naked Turns . | . . Heaviest Build 15 | 12 15 Greatest Support 40 | 40 40 Greatest Overweight (x) 2 | . 2 Average Overweight (x) . | . . Largest Inventory Capacity 8 | 8 8 Average Capacity 7 | 6 8 Most Carried 8 | 4 8 Average Carried 5 | 1 6 Final Capacity 8 | 8 8 Final Carried 6 | 3 6 Class Distribution -------------------- 100% | Mutant Dominant Class ---------------- Mutant | -10/Materials Resources | -11 -10 ----------- Run | Yrd Mat Matter Collected 323 | 216 107 Remotely . | . . Salvage Created 397 | 16 381 Parts 19 | 4 15 Haulers Intercepted . | . . Recyclers Shooed . | . . Parts Field Recycled . | . . Retrieved Matter . | . . Parts Self-Destructed . | . . Prevented . | . . Kills | -11 -10 ------- Run | Yrd Mat Combat Hostiles Destroyed 8 | . 8 Guns 5 | . 5 Classes Destroyed 4 | 1 3 Worker 1 | . 1 Tunneler 1 | 1 . Watcher 1 | . 1 Grunt 8 | . 8 Best Kill Streak 3 | 1 3 Combat Bots Only 3 | . 3 Max Kills in Single Turn 1 | 1 1 Gunslinging . | . . Exploded . | . . Melee . | . . Uniques/NPCs Destroyed . | . . Combat | -11 -10 -------- Run | Yrd Mat Hostile Shots Fired 101 | . 101 Missed 24 | . 24 Damage Taken 857 | . 857 Core 256 | . 256 Absorbed by Shields . | . . Core Remaining (%) 100 | 100 . Volleys Fired 52 | 3 49 Largest 2 | 2 2 Hottest 100 | 70 100 Shots Fired 96 | 6 90 Gun 96 | 6 90 Cannon . | . . Launcher . | . . Special . | . . Kinetic 23 | 3 20 Thermal 73 | 3 70 Explosive . | . . Electromagnetic . | . . Robot Hit Streak 18 | 1 18 Robot Miss Streak 3 | 3 3 Penetration Max . | . . Secondary Targets . | . . Shots Hit Robots 69 | 2 67 Core Hits 19 | 1 18 Critical Kills . | . . Critical Parts Destroyed . | . . Critical Strikes 6 | . 6 Burn 6 | . 6 Melee Attacks . | . . Impact . | . . Slashing . | . . Piercing . | . . Sneak Attacks . | . . Combat Hostiles . | . . Follow-up Attacks . | . . Damage Inflicted 824 | 18 806 Guns 824 | 18 806 Cannons . | . . Explosions . | . . Melee . | . . Ramming . | . . Kinetic 150 | 18 132 Thermal 674 | . 674 Explosive . | . . Electromagnetic . | . . Impact . | . . Slashing . | . . Piercing . | . . Highest Corruption . | . . Average Corruption . | . . Corruption Purged . | . . Corruption Blocked . | . . Overload Shots . | . . Overflow Damage . | . . Projectiles . | . . Explosions . | . . Melee . | . . Knockbacks . | . . Impact . | . . Kinetic . | . . Secondary . | . . Self-Inflicted Damage . | . . Shots . | . . Rammed . | . . Targets Rammed . | . . Kicked . | . . Crushed . | . . Highest Temperature 321 | 70 321 Average Temperature 83 | 41 86 Received Heat Transfer 411 | . 411 Effects 2 | . 2 Interference 1 | . 1 Short Circuit 1 | . 1 Siege Activations . | . . Robots Corrupted . | . . Combat Hostiles . | . . Parts Fried . | . . Impact Corruptions . | . . Robots Melted 3 | . 3 Combat Hostiles 3 | . 3 Parts Melted 4 | . 4 Heat Transferred 2331 | . 2331 Parts Sabotaged . | . . Parts Stolen . | . . Parts Stripped . | . . Power Chain Reactions . | . . Alert | -11 -10 ------- Run | Yrd Mat Peak Influence 168 | 5 168 Initial 3 | . 3 Average 48 | 1 53 Maximum Alert Level . | . . Low Security (%) 100 | 100 100 Level 1 . | . . Level 2 . | . . Level 3 . | . . Level 4 . | . . Level 5 . | . . High Security . | . . Max Security . | . . Squads Dispatched 3 | . 3 Investigation 2 | . 2 Extermination . | . . Reinforcement 1 | . 1 Assault . | . . Garrison . | . . Intercept . | . . Searches Triggered . | . . Construction Impeded . | . . Haulers Reinforced . | . . Active Scanning Responses . | . . Cargo Convoy Interrupts . | . . Stealth | -11 -10 --------- Run | Yrd Mat Distress Signals . | . . Communications Jammed . | . . Distress Signals . | . . Times Spotted 22 | . 22 Peak Tracking Total 7 | . 7 Tactical Retreats 4 | . 4 Traps | -11 -10 ------- Run | Yrd Mat Traps Triggered . | . . Indirectly . | . . Trap Hack Attempts . | . . Triggered . | . . Disarmed . | . . Reprogrammed . | . . Reused . | . . Traps Extracted . | . . Installed . | . . Triggered . | . . Machines | -11 -10 ---------- Run | Yrd Mat Machines Disabled . | . . Max in Single Turn . | . . Machines Repaired . | . . Machines Dismantled . | . . Machines Sabotaged . | . . Overloaded Fab Kills . | . . Hacking | -11 -10 --------- Run | Yrd Mat Machines Accessed 4 | . 4 Terminals 3 | . 3 Fabricators . | . . Repair Stations . | . . Recycling Units 1 | . 1 Scanalyzers . | . . Garrison Access . | . . Total Hacks 11 | . 11 Successful 6 | . 6 Failed 5 | . 5 Catastrophic . | . . Database Lockouts . | . . Manual 8 | . 8 Terminals 9 | . 9 Fabricators . | . . Repair Stations . | . . Recycling Units 2 | . 2 Scanalyzers . | . . Garrison Access . | . . Terminal Hacks 4 | . 4 Robot Analysis 2 | . 2 Locate Traps 1 | . 1 Hauler Manifests 1 | . 1 Fabricator Hacks . | . . Repair Station Hacks . | . . Recycling Unit Hacks 2 | . 2 Report Inventory 1 | . 1 Retrieve Components 1 | . 1 Scanalyzer . | . . Garrison Access Hacks . | . . Unauthorized Hacks . | . . Terminals . | . . Fabricators . | . . Repair Stations . | . . Recycling Units . | . . Scanalyzers . | . . Garrison Access . | . . Data Cores Recovered . | . . Used . | . . Hacking Detections 3 | . 3 Full Trace Events 1 | . 1 Feedback Events . | . . Feedback Blocked . | . . Robot Schematics Acquired . | . . Robots Built . | . . Authchips . | . . Time . | . . Total Robot Build Rating . | . . Part Schematics Acquired . | . . Parts Built . | . . Authchips . | . . Time . | . . Total Part Build Rating . | . . Parts Repaired . | . . Time . | . . Parts Recycled . | . . Recycled Matter . | . . Retrieved Matter . | . . Retrieved Components 6 | . 6 Parts Scanalyzed . | . . Part Schematics Acquired . | . . Parts Damaged . | . . Bothacking | -11 -10 ------------ Run | Yrd Mat Used RIF Installer . | . . Robots Hacked . | . . Non-combat . | . . Combat . | . . Robot Hacks Applied . | . . Relay Couplers Released . | . . Fabnet Peak Effective % . | . . Robots Rewired . | . . Allies Hacked . | . . Hacks Repelled . | . . Allies | -11 -10 -------- Run | Yrd Mat Total Allies . | . . Largest Group . | . . Highest-Rated Group . | . . Highest-Rated Ally . | . . Total Orders . | . . Ally Attacks . | . . Total Damage . | . . Kills . | . . Allies Corrupted . | . . Allies Melted . | . . Intel | -11 -10 ------- Run | Yrd Mat Robot Analysis Total 2 | . 2 Derelict Logs Recovered . | . . Drone Launches . | . . Drone Recoveries . | . . Exploration | -11 -10 ------------- Run | Yrd Mat Turns Passed 896 | 81 815 Spaces Moved 318 | 42 276 Core 9 | 7 2 Treads 309 | 35 274 Legs . | . . Wheels . | . . Hover . | . . Flight . | . . Fastest Speed 50 | 50 150 Average Speed 157 | 141 159 Slowest Speed 160 | 160 160 Overloaded Moves . | . . Propulsion Burnouts . | . . Robots Hopped . | . . Cave-ins Triggered . | . . Exploration Rate (%) 24 | 4 45 Regions Visited 1 Branch Regions . Pre-discovered Areas . | . . Known Exits Taken . | . . Unknown Exits Taken 1 | 1 . Scrap Searched . | . . Spaces Dug . | . . Terrain Destroyed . | . . Melee . | . . Projectile . | . . AOE . | . . Terrain Rammed . | . . Walls Destroyed . | . . Machines Disabled . | . . Actions | -11 -10 --------- Run | Yrd Mat Total 619 | 56 563 Wait 228 | . 228 Move 317 | 41 276 Hop . | . . Pick Up 10 | 5 5 Fast Attach 5 | 5 . Attach 3 | 2 1 Detach . | . . Swap 3 | . 3 Drop 1 | . 1 Fire 52 | 3 49 Melee . | . . Ram . | . . Kick . | . . Crush . | . . Escape Stasis . | . . Rewire . | . . Trap . | . . Miscellaneous . | . . Route ------- -11/Scrapyard -10/Materials (discovered 1 exit: [*Sub]) History --------- Turn | Location | Event 8 | -11/Scrapyard | Discovered new exit (range 14) 82 | -11/Scrapyard | Entered Materials 316 | -10/Materials | Build established: Mutant 589 | -10/Materials | Discovered new exit (range 10) 682 | -10/Materials | Derelicts attacked the area 790 | -10/Materials | Core integrity fell below 50% 839 | -10/Materials | Core integrity fell below 20% 856 | -10/Materials | Lost 3 parts (1p1n1u) 897 | -10/Materials | Destroyed by S-10 Pest with Light Assault Rifle Last Messages --------------- 00819_ G-34 Mercenary critical meltdown. 00821_ K-01 Serf collects debris. 00823_ Seismic Detector destroyed. 00825_ Lgt. Ion Engine destroyed. 00830_ Med. Laser broken. 00830_ Overheating: Short circuit. 00831_ G-34 Mercenary critical meltdown. 00834_ Overheating: System interference. 00834_ Med. Laser temporarily disabled. 00849_ K-01 Serf cleans the Terminal. 00849_ G-34 Mercenary destroyed. 00852_ K-01 Serf cleans the Terminal. 00853_ Acquired 17 matter. 00860_ U-05 Engineer lays Concrete. 00872_ K-01 Serf collects debris. 00873_ U-05 Engineer builds a Door. 00876_ K-01 Serf collects debris. 00878_ Dropped Broken Med. Laser. 00878_ K-01 Serf collects debris. 00894_ Lgt. Treads destroyed. Map ----- +----------------------------------------------------+ | == # ##############?????? ??????????? | | ]# #??????????????????? ?????????? | | ######## #???????????????????"" ?????????? | | # # #???????????????????"" = ????????? | | < + #???????????????????"" ###????????? | | # #% #??????????????? ???? #??????????? | | ######## #??????????????? ???? +??????????? | | ## ##?????????????? ???? #??????????? | | """ # ############### ! "?? ???????????? | | """ # !% % =%"???????????????? | | """ + =%! ! ??????????????? | | # [= ??????????????? | | # ###" %# ##%###????????????????? | | ## ##??# % & #????????????????? | | ######## #???# % #????????????????? | | ???????# #???# + #????????????????? | | ???????# #???# # #????????????????? | | ??????? #???# #% "#?????#??????????? | | ?????? #???# %& #???? #??????????? | | ????? #???# %&%= ["#???? #??????????? | | ????########???# %# %=#??? #??????????? | | ???????????????# # ####+#??? #??????????? | | ???????????????# #????# #?? % ###????????? | | ???????????????# =%####???## ### *% #????????? | | ???????????????# !######## "" #????????? | | ???????????????# =%ss @ T + "???? | | ?????????####### =s####### # "???? | | ?????????# #?????###### #???? ??? | | ?????????# [ #???????????# ##????????? | | ?????????# #???????????? #?????????? | | ?????????# #???????????? +?????????? | | ?????????# #????????????? #?????????? | | ?????????# #????????????^^^#?????????? | | ???????? #????????????^^^#?????????? | | ?????? #?????????????? #?????????? | | ???? #????????????^^^#?????????? | | ???# #??????????????? ?????????? | | ???? #??????????????? ?????????? | | ???? #### #?????????????????????????? | | ????? ???# #?????????????????????????? | | ????? ????#! !#?????????????????????????? | | ??????? ?????##!!!!##?????????????????????????? | | ??????????????######??????????????????????????? | | ??????????????????????????????????????????????? | | ??????????????????????????????????????????????? | | ??????????????????????????????????????????????? | | ??????????????????????????????????????????????? | | ??????????????????????????????????????????????? | | ??????????????????????????????????????????????? | | ??????????????????????????????????????????????? | +----------------------------------------------------+ Best States ------------- Heat Dissipation 25 Energy Generation 10 Energy Capacity 250 Matter Stores 300 Matter Capacity 300 Sight Range 16 Terrain Scan Density 10 Evasion (%) 40 Recoil Reduction 2 Item Schematics ----------------- None Robot Schematics ------------------ None Fabricated ------------ Nothing Alien Tech Used ----------------- None Achievements -------------- root@ Challenges ------------ None Game ------ Seed LayeredAssemblyClaws Manual? 0 Play Time 00:09:23 Cumulative 9.8 hours Start 2025.01.18 @ 16:01:51 End 2025.01.18 @ 16:09:15 Sessions 1 Manual Loads 0 Difficulty Rogue Special Mode None Game No. 15 Rogue 15 Adventurer 0 Explorer 0 Win Type - Total 0 Types 0/0/0/0/0/0/0/0/0 Lore% 8 Gallery% 15 Achievement% 17 Wizard Run 0 Options --------- Layout 1 ASCII 0 Keyboard 0 Movement Mouse Keybinds 0 Fullscreen 0 Font 24/Smallcaps Map View 50x35 Zoom Use 0% Tactical HUD 1 Map Filters NONE Filters NONE Steam 1 RUN: f495abaf-5874-41a2-ba5d-e4d5b5f0b2a8